Cogmind - Beta 12 @@@ ROGUE MODE // 2024.01.12 @ 16:27:40 Player: puppuppit Result: Destroyed by G-34 Mercenary with Small Laser Performance ------------- Evolutions (1) 500 Regions Visited (3) 600 Robots Destroyed (99) 495 Value Destroyed (1918) 1918 Prototype IDs (9) 180 Alien Tech Used (0) 0 Bonus (199) 199 TOTAL SCORE: 3892 Bonus ------- High Alert Combat Kills 199 Cogmind --------- Core Integrity 0/400 Matter 264/300 Energy 99/100 System Corruption 2% Temperature Cool (6) Movement Core (150) Ox2 Location -9/Materials Parts ------- > --- POWER (1) -------- (None) > --- PROPULSION (2) --- (None) > --- UTILITY (4) ------ Improved Targeting Computer Improved Targeting Computer Hacking Suite > --- WEAPON (2) ------- Particle Cannon Autogun > --- INVENTORY (5) ---- Small Storage Unit Large Matter Pod (150) Core Shielding Particle Cannon Autogun Peak State ------------ > --- POWER ------------ Light Ion Engine > --- PROPULSION ------- Hover Unit Backup Propulsion I > --- UTILITY ---------- Small Storage Unit Improved Targeting Computer Improved Targeting Computer Hacking Suite > --- WEAPON ----------- Autogun Autogun > --- INVENTORY -------- Hover Unit Backup Propulsion I Small Storage Unit Large Matter Pod Core Shielding Heavy Assault Rifle EMP Blaster Rocket Launcher [Rating: 16] Favorites ----------- Power Light Ion Engine Engine Light Ion Engine Propulsion Hover Unit Wheel Wheel Hover Unit Hover Unit Utility Small Storage Unit Device Improved Terrain Scanner Storage Small Storage Unit Processor Improved Targeting Computer Hackware Hacking Suite Protection Core Shielding Weapon Small Laser Energy Gun Small Laser Energy Cannon Beam Cannon Ballistic Gun Light Assault Rifle Launcher Grenade Launcher Build | -11 -10 -10 -9 ------- Run | Jun Mat Min Mat Slots Evolved 2 | . . . 2 Power . | . . . . Propulsion . | . . . . Utility 2 | . . . 2 Weapon . | . . . . Parts Attached 74 | 9 26 4 35 Power 11 | 1 6 1 3 Engine 11 | 1 6 1 3 Core . | . . . . Reactor . | . . . . Propulsion 27 | 4 10 . 13 Treads . | . . . . Leg . | . . . . Wheel 7 | 4 2 . 1 Hover 20 | . 8 . 12 Flight . | . . . . Utility 12 | 2 7 . 3 Device 2 | 1 1 . . Storage 4 | 1 3 . . Processor 3 | . 1 . 2 Hackware 2 | . 1 . 1 Protection 1 | . 1 . . Artifact . | . . . . Weapon 24 | 2 3 3 16 Energy Gun 6 | 2 1 2 1 Energy Cannon 2 | . 1 . 1 Ballistic Gun 5 | . 1 . 4 Ballistic Cannon . | . . . . Launcher 11 | . . 1 10 Special Weapon . | . . . . Impact Weapon . | . . . . Slashing Weapon . | . . . . Piercing Weapon . | . . . . Special Melee Weapon . | . . . . Unidentified Prototypes . | . . . . Parts Lost 16 | . 4 1 11 Power 2 | . . 1 1 Propulsion 8 | . 2 . 6 Utility 2 | . 1 . 1 Weapon 4 | . 1 . 3 Highest Loss Streak 3 | . 2 1 3 To Critical Strikes . | . . . . Average Slot Usage (%) 94 | . 99 99 87 Engine 11 | . 14 13 6 Wheel 6 | . 12 . 1 Hover 18 | . 15 28 17 Device 1 | . 2 . . Storage 12 | . 14 14 10 Processor 8 | . 3 . 17 Hackware 10 | . 5 14 13 Energy Gun 8 | . 11 14 2 Energy Cannon 5 | . 9 5 . Ballistic Gun 6 | . 6 . 9 Launcher 3 | . . 8 6 Naked Turns . | . . . . Heaviest Build 18 | 11 18 12 15 Greatest Support 32 | 32 20 12 12 Greatest Overweight (x) 2 | . 1 . 2 Average Overweight (x) . | . . . . Largest Inventory Capacity 10 | 8 10 8 8 Average Capacity 8 | 7 8 8 7 Most Carried 10 | 6 10 8 8 Average Carried 7 | 2 8 7 6 Final Capacity 8 | 8 8 8 5 Final Carried 8 | 6 8 8 5 Class Distribution -------------------- 71% | Mutant 20% | Scavenger-Mutant 7% | Hacker-Mutant Dominant Class ---------------- Mutant | -10/Materials Mutant | -10/Mines Mutant | -9/Materials Resources | -11 -10 -10 -9 ----------- Run | Jun Mat Min Mat Matter Collected 1718 | 140 658 39 881 Remotely . | . . . . Salvage Created 2634 | 159 1023 164 1288 Parts 192 | 13 70 17 92 Haulers Intercepted 7 | . 2 . 5 Recyclers Shooed . | . . . . Parts Field Recycled . | . . . . Retrieved Matter . | . . . . Parts Self-Destructed . | . . . . Prevented . | . . . . Kills | -11 -10 -10 -9 ------- Run | Jun Mat Min Mat Combat Hostiles Destroyed 58 | . 21 8 29 Guns 25 | . 14 1 10 Cannons 6 | . 3 2 1 AOE 27 | . 4 5 18 Classes Destroyed 11 | 2 7 . 2 Worker 7 | . 5 . 2 Builder 5 | . 2 . 3 Tunneler 6 | 4 1 1 . Hauler 7 | . 2 . 5 Recycler 4 | 1 1 . 2 Operator 5 | . 3 . 2 Watcher 7 | . 3 . 4 Swarmer 23 | . 9 6 8 Grunt 26 | . 12 2 12 Brawler 2 | . . . 2 Sentry 7 | . . . 7 Best Kill Streak 10 | 5 5 3 10 Combat Bots Only 5 | . 4 3 5 Max Kills in Single Turn 5 | 1 5 2 4 Gunslinging . | . . . . Exploded 4 | . 3 2 4 Melee . | . . . . Uniques/NPCs Destroyed . | . . . . Combat | -11 -10 -10 -9 -------- Run | Jun Mat Min Mat Damage Taken 1903 | . 682 192 1029 Core 626 | . 177 47 402 Absorbed by Shields . | . . . . Redirected to Shielding 7 | . 7 . . Regen/Repaired (Parts) 24 | . . . 24 Core Remaining (%) 55 | 100 . 10 . Volleys Fired 199 | 11 99 13 76 Largest 2 | 2 2 2 2 Hottest 100 | 80 100 100 91 Shots Fired 361 | 22 192 25 122 Gun 249 | 22 135 13 79 Cannon 72 | . 57 8 7 Launcher 40 | . . 4 36 Special . | . . . . Kinetic 128 | . 65 . 63 Thermal 193 | 22 127 21 23 Explosive 33 | . . 4 29 Electromagnetic 7 | . . . 7 Robot Hit Streak 12 | 8 11 4 12 Robot Miss Streak 5 | 1 5 3 4 Penetration Max . | . . . . Secondary Targets 1 | . 1 . . Max Gunslinging Chain 1 | . 1 . . Shots Hit Robots 221 | 14 106 11 90 Core Hits 142 | 6 52 13 71 Critical Kills . | . . . . Critical Parts Destroyed 1 | . . . 1 Critical Strikes 3 | . . . 3 Burn 2 | . . . 2 Destroy 1 | . . . 1 Melee Attacks . | . . . . Impact . | . . . . Slashing . | . . . . Piercing . | . . . . Sneak Attacks . | . . . . Combat Hostiles . | . . . . Follow-up Attacks . | . . . . Damage Inflicted 5515 | 153 1944 440 2978 Guns 1925 | 153 823 65 884 Cannons 628 | . 436 87 105 Explosions 2962 | . 685 288 1989 Melee . | . . . . Ramming . | . . . . Kinetic 1030 | . 295 . 735 Thermal 1597 | 153 964 152 328 Explosive 2716 | . 685 288 1743 Electromagnetic 172 | . . . 172 Impact . | . . . . Slashing . | . . . . Piercing . | . . . . Highest Corruption 2 | . . . 2 Average Corruption 2 | . . . 2 Corruption Purged . | . . . . Corruption Blocked . | . . . . Effects 7 | . . . 7 Message Errors 2 | . . . 2 Matter Fused 1 | . . . 1 Energy Discharges 2 | . . . 2 Parts Rejected 1 | . . . 1 Misfires 1 | . . . 1 Overload Shots . | . . . . Overflow Damage 276 | . 204 2 70 Projectiles 15 | . 15 . . Explosions 261 | . 189 2 70 Melee . | . . . . Knockbacks . | . . . . Impact . | . . . . Kinetic . | . . . . Secondary . | . . . . Self-Inflicted Damage 187 | . 125 6 56 Shots 6 | . 2 1 3 Rammed . | . . . . Targets Rammed . | . . . . Kicked . | . . . . Crushed . | . . . . Highest Temperature 340 | 108 340 266 103 Average Temperature 70 | 49 80 90 25 Received Heat Transfer 618 | . 192 93 333 Effects 2 | . . 2 . Interference 2 | . . 2 . Siege Activations . | . . . . Robots Corrupted . | . . . . Combat Hostiles . | . . . . Parts Fried . | . . . . Impact Corruptions . | . . . . Robots Melted . | . . . . Combat Hostiles . | . . . . Parts Melted 6 | . 3 . 3 Heat Transferred 3703 | 350 2100 335 918 Parts Sabotaged . | . . . . Parts Stolen . | . . . . Parts Stripped . | . . . . Power Chain Reactions 2 | . . . 2 Missiles Intercepted . | . . . . Alert | -11 -10 -10 -9 ------- Run | Jun Mat Min Mat Peak Influence 933 | 25 431 378 933 Initial 163 | . 16 163 146 Average 355 | 8 261 282 550 Maximum Alert Level 3 | . 2 1 3 Low Security (%) 19 | 100 28 8 4 Level 1 44 | . 51 91 18 Level 2 25 | . 19 . 48 Level 3 9 | . . . 28 Level 4 . | . . . . Level 5 . | . . . . High Security . | . . . . Max Security . | . . . . Squads Dispatched 11 | . 6 . 5 Investigation 8 | . 3 . 5 Extermination . | . . . . Reinforcement 3 | . 3 . . Assault . | . . . . Garrison . | . . . . Intercept . | . . . . Searches Triggered . | . . . . Construction Impeded . | . . . . Haulers Reinforced . | . . . . Active Scanning Responses . | . . . . Cargo Convoy Interrupts . | . . . . Stealth | -11 -10 -10 -9 --------- Run | Jun Mat Min Mat Distress Signals 2 | . . . 2 Communications Jammed . | . . . . Distress Signals . | . . . . Times Spotted 83 | . 31 8 44 Peak Tracking Total 7 | . 5 3 7 Tactical Retreats . | . . . . Traps | -11 -10 -10 -9 ------- Run | Jun Mat Min Mat Traps Triggered 3 | . 1 . 2 Indirectly . | . . . . Trap Hack Attempts . | . . . . Triggered . | . . . . Disarmed . | . . . . Reprogrammed 3 | . . . 3 Reused . | . . . . Traps Extracted . | . . . . Installed . | . . . . Triggered . | . . . . Machines | -11 -10 -10 -9 ---------- Run | Jun Mat Min Mat Machines Disabled 10 | . 4 . 6 Max in Single Turn 2 | . 2 . 1 Machines Repaired . | . . . . Machines Sabotaged . | . . . . Overloaded Fab Kills . | . . . . Hacking | -11 -10 -10 -9 --------- Run | Jun Mat Min Mat Machines Accessed 19 | . 7 . 12 Terminals 17 | . 6 . 11 Fabricators . | . . . . Repair Stations 2 | . 1 . 1 Recycling Units . | . . . . Scanalyzers . | . . . . Garrison Access . | . . . . Total Hacks 66 | . 26 . 40 Successful 32 | . 16 . 16 Failed 34 | . 10 . 24 Catastrophic 2 | . . . 2 Database Lockouts . | . . . . Manual 25 | . 12 . 13 Terminals 59 | . 23 . 36 Fabricators . | . . . . Repair Stations 7 | . 3 . 4 Recycling Units . | . . . . Scanalyzers . | . . . . Garrison Access . | . . . . Terminal Hacks 26 | . 13 . 13 Record 1 | . 1 . . Robot Analysis 3 | . . . 3 Prototype ID Bank 12 | . 9 . 3 Emergency Access Points 1 | . . . 1 Recycling Unit Index 1 | . 1 . . Unreport Threat 1 | . . . 1 Locate Traps 1 | . . . 1 Reprogram Traps 1 | . . . 1 Security Status 1 | . . . 1 Recall Investigation 1 | . . . 1 Hauler Manifests 1 | . 1 . . Registered Components 1 | . . . 1 Zone Layout 1 | . 1 . . Fabricator Hacks . | . . . . Repair Station Hacks 6 | . 3 . 3 Scan Component 2 | . 1 . 1 Repair 2 | . 1 . 1 Refit 2 | . 1 . 1 Recycling Unit Hacks . | . . . . Scanalyzer . | . . . . Garrison Access Hacks . | . . . . Unauthorized Hacks . | . . . . Terminals . | . . . . Fabricators . | . . . . Repair Stations . | . . . . Recycling Units . | . . . . Scanalyzers . | . . . . Garrison Access . | . . . . Data Cores Recovered 2 | . . . 2 Used 2 | . . . 2 Hacking Detections 19 | . 7 . 12 Full Trace Events 8 | . 3 . 5 Feedback Events . | . . . . Feedback Blocked . | . . . . Robot Schematics Acquired . | . . . . Robots Built . | . . . . Authchips . | . . . . Time . | . . . . Total Robot Build Rating . | . . . . Part Schematics Acquired . | . . . . Parts Built . | . . . . Authchips . | . . . . Time . | . . . . Total Part Build Rating . | . . . . Parts Repaired 1 | . . . 1 Time 52 | . 26 . 26 Parts Recycled . | . . . . Recycled Matter . | . . . . Retrieved Matter . | . . . . Retrieved Components . | . . . . Parts Scanalyzed . | . . . . Part Schematics Acquired . | . . . . Parts Damaged . | . . . . Bothacking | -11 -10 -10 -9 ------------ Run | Jun Mat Min Mat Used RIF Installer . | . . . . Robots Hacked . | . . . . Non-combat . | . . . . Combat . | . . . . Robot Hacks Applied . | . . . . Relay Couplers Released . | . . . . Fabnet Peak Effective % . | . . . . Robots Rewired . | . . . . Allies Hacked . | . . . . Hacks Repelled . | . . . . Allies | -11 -10 -10 -9 -------- Run | Jun Mat Min Mat Total Allies . | . . . . Largest Group . | . . . . Highest-Rated Group . | . . . . Highest-Rated Ally . | . . . . Total Orders . | . . . . Ally Attacks . | . . . . Total Damage . | . . . . Kills . | . . . . Allies Corrupted . | . . . . Allies Melted . | . . . . Intel | -11 -10 -10 -9 ------- Run | Jun Mat Min Mat Robot Analysis Total 3 | . . . 3 Derelict Logs Recovered 1 | . . 1 . Drone Launches . | . . . . Drone Recoveries . | . . . . Exploration | -11 -10 -10 -9 ------------- Run | Jun Mat Min Mat Turns Passed 2222 | 96 961 385 780 Spaces Moved 2007 | 47 840 508 612 Core 10 | 2 . . 8 Treads . | . . . . Legs . | . . . . Wheels 322 | 45 277 . . Hover 1675 | . 563 508 604 Flight . | . . . . Fastest Speed 50 | 50 56 66 56 Average Speed 73 | 94 72 66 80 Slowest Speed 245 | 100 116 66 245 Overloaded Moves . | . . . . Propulsion Burnouts . | . . . . Robots Hopped . | . . . . Cave-ins Triggered . | . . . . Exploration Rate (%) 66 | 3 98 98 67 Regions Visited 3 Branch Regions 1 Pre-discovered Areas 1 | . . 1 . Known Exits Taken . | . . . . Unknown Exits Taken 3 | 1 1 1 . Scrap Searched 1 | . . 1 . Spaces Dug . | . . . . Terrain Destroyed 245 | . 28 38 179 Melee . | . . . . Projectile . | . . . . AOE 245 | . 28 38 179 Terrain Rammed . | . . . . Walls Destroyed . | . . . . Machines Disabled . | . . . . Actions | -11 -10 -10 -9 --------- Run | Jun Mat Min Mat Total 2413 | 71 1018 531 793 Wait 57 | . 17 5 35 Move 2004 | 46 839 507 612 Hop . | . . . . Pick Up 31 | 5 15 1 10 Fast Attach 22 | 7 6 . 9 Attach 25 | . 5 2 18 Detach 15 | . 3 . 12 Swap 27 | 2 15 2 8 Drop 33 | . 19 1 13 Fire 199 | 11 99 13 76 Melee . | . . . . Ram . | . . . . Kick . | . . . . Crush . | . . . . Escape Stasis . | . . . . Rewire . | . . . . Trap . | . . . . Miscellaneous . | . . . . Route ------- -11/Junkyard -10/Materials (discovered 5 exits: *Mat x3 / [*Min x2]) -10/Mines (discovered 2 exits: *Mat x2) -9/Materials (discovered 3 exits: [*Mat] / [*Min] / [*Sto]) History --------- Turn | Location | Event 29 | -11/Junkyard | Discovered new exit (range 15) 97 | -11/Junkyard | Entered Materials 181 | -10/Materials | Discovered new exit (range 9) 312 | -10/Materials | Build established: Mutant 410 | -10/Materials | Discovered new exit (range 16) 719 | -10/Materials | Discovered new exit (range 8) 749 | -10/Materials | Discovered new exit (range 13) 778 | -10/Materials | Core integrity fell below 50% 1006 | -10/Materials | Discovered new exit (range 15) 1058 | -10/Materials | Entered Mines 1077 | -10/Mines | Core integrity fell below 20% 1166 | -10/Mines | Received a Rocket Launcher from a helpful Derelict 1304 | -10/Mines | Discovered new exit (range 5) 1363 | -10/Mines | Learned location of Zion (-7) 1375 | -10/Mines | Discovered new exit (range 8) 1443 | -10/Mines | Entered Materials 1443 | -9/Materials | Evolved 2 slots: Utility x2 1573 | -9/Materials | Discovered new exit (range 13) 1590 | -9/Materials | Discovered new exit (range 12) 1777 | -9/Materials | Repaired Hover Unit 1836 | -9/Materials | Discovered new exit (range 16) 2038 | -9/Materials | Core integrity fell below 50% 2043 | -9/Materials | Lost 3 parts (1p1n1w) 2210 | -9/Materials | Core integrity fell below 20% 2223 | -9/Materials | Destroyed by G-34 Mercenary with Small Laser Last Messages --------------- 02139_ Acquired 50 matter. 02154_ Acquired Particle Cannon. 02173_ R-06 Scavenger destroyed. 02174_ R-06 Scavenger collects Lgt. Ion Engine. 02176_ Acquired 44 matter. 02177_ R-06 Scavenger collects Heat Sink. 02186_ R-06 Scavenger destroyed. 02190_ Acquired Lgt. Ion Engine. 02190_ R-06 Scavenger collects Heat Sink. 02191_ Acquired 76 matter. 02193_ W-16 Scout sends out distress signal. 02194_ R-06 Scavenger collects Lgt. Treads. 02201_ R-06 Scavenger collects Tractor Beam. 02202_ Hover Unit destroyed. 02205_ S-10 Pest destroyed. 02211_ Hover Unit destroyed. 02211_ Dropped Lgt. Ion Engine. 02212_ Dropped Sml. Storage Unit. 02212_ Acquired 17 matter. 02215_ SX